bitfinex/quotes_ETHUSD_20240530
["timestamp","ask_amount","ask_price","bid_price","bid_amount"]
[1717058933814,2.68161,3729.1,3729.0,1.69007424]
[1717058936552,2.6813,3729.6,3729.0,1.69007424]
[1717058936762,3.58011016,3729.5,3729.1,1.29789222]
[1717058937045,0.58011016,3729.4,3729.1,1.29789222]
[1717058937408,2.92373458,3729.8,3729.2,1.88159385]
[1717058937725,2.8059329,3730.1,3729.4,2.4222]
[1717058937902,0.58004738,3730.0,3729.5,1.84789222]
[1717058938106,0.58004738,3730.0,3729.5,1.88147494]
[1717058940647,2.68107,3729.9,3729.5,1.33147494]
[1717058940850,2.68118,3729.7,3729.5,1.33147494]
[1717058941021,0.58004738,3729.6,3729.5,1.29789222]
[1717058941744,2.68118,3729.7,3729.5,1.29789222]
[1717058943425,0.1249929,3730.1,3729.6,0.55]
[1717058943629,0.1249929,3730.1,3730.0,1.29789222]
[1717058943862,0.1249929,3730.1,3730.0,1.84789222]
[1717058945050,0.1249929,3730.1,3730.0,1.29789222]
[1717058946998,2.68097,3730.0,3728.8,2.2712]
[1717058947206,2.68097,3730.0,3728.9,1.72231222]
[1717058947953,2.68097,3730.0,3729.5,1.29789222]
[1717058948263,2.68097,3730.0,3729.6,2.4816]
[1717058948487,2.68097,3730.0,3729.7,1.84789222]
[1717058949196,0.1249929,3730.1,3729.7,1.84789222]
[1717058949416,0.1249929,3730.1,3729.8,0.43294922]
[1717058949583,0.1249929,3730.1,3729.9,1.29789222]
[1717058950873,0.1249929,3730.1,3730.0,0.55]
[1717058951072,0.1249929,3730.1,3730.0,1.84789222]
[1717058952398,0.1249929,3730.1,3730.0,1.29789222]
[1717058953925,0.1249929,3730.1,3730.0,1.47097636]
[1717058954130,0.1249929,3730.1,3730.0,1.50408764]
[1717058954535,0.1249929,3730.1,3730.0,1.3310035]
[1717058955036,0.1249929,3730.1,3730.0,0.03311128]
[1717058955440,2.68106,3729.9,3728.9,2.89112]
[1717058955643,2.68106,3729.9,3729.0,1.29789222]
[1717058955840,2.68106,3729.9,3729.0,1.33107458]
[1717058956141,2.68106,3729.9,3729.1,0.42221946]
[1717058956337,2.68106,3729.9,3729.2,1.29789222]
[1717058956505,2.68106,3729.9,3729.3,0.55]
[1717058956705,2.68106,3729.9,3729.4,1.29789222]
[1717058956919,2.68106,3729.9,3729.4,1.33110469]
[1717058958205,2.68106,3729.9,3729.4,1.5614371]
[1717058963876,0.58004161,3729.8,3729.4,1.5614371]
[1717058964045,0.58004161,3729.8,3729.5,1.29789222]
[1717058964240,0.58004161,3729.8,3729.6,0.55]
[1717058964470,2.68106,3729.9,3729.7,1.29789222]
[1717058964631,2.68106,3729.9,3729.8,0.55]
[1717058964942,4.62999353,3729.9,3729.8,1.84789222]
[1717058965139,5.21001935,3729.9,3729.8,2.03268144]
[1717058965655,5.21001935,3729.9,3729.8,1.48268144]
[1717058967474,5.21002091,3729.9,3729.8,1.48268144]
[1717058968451,4.62999353,3729.9,3729.8,1.48268144]
[1717058971278,5.21000205,3729.9,3729.8,1.29789222]
[1717058972884,4.62999353,3729.9,3729.8,1.29789222]
[1717058973758,1.94893353,3729.9,3729.8,1.29789222]
[1717058974084,1.94893353,3730.0,3729.8,1.84789222]
[1717058974251,1.94893353,3730.0,3729.9,1.84789222]
[1717058974483,1.94893353,3730.0,3729.9,2.36923853]
[1717058977122,0.1249929,3730.1,3729.9,2.36923853]
[1717058977293,0.1249929,3730.1,3730.0,1.29789222]
[1717058977490,2.07353294,3730.1,3730.0,1.84789222]
[1717058977721,0.1249929,3730.1,3730.0,1.8809222]
[1717058977881,0.1249929,3730.1,3730.0,2.36636534]
[1717058978279,2.07341572,3730.1,3730.0,2.36636534]
[1717058978693,0.1249929,3730.1,3730.0,2.36636534]
[1717058979794,2.07346751,3730.1,3730.0,2.36636534]
[1717058980024,0.1249929,3730.1,3730.0,2.36636534]
[1717058983114,2.07343408,3730.1,3730.0,2.36636534]
[1717058983509,0.1249929,3730.1,3730.0,4.2130222]
[1717058990417,2.6797,3731.8,3730.0,4.2130222]
[1717058990418,2.1297,3731.8,3730.6,2.4718]
[1717058990727,1.94805682,3731.7,3731.3,1.29789222]
[1717058990926,1.94805682,3731.6,3731.4,0.55]
[1717058991134,1.94805682,3731.6,3731.5,1.29789222]
[1717058992611,1.94805682,3731.7,3731.5,1.29789222]
[1717058992811,1.94805682,3731.6,3731.5,1.29789222]
[1717058993128,4.62786682,3731.6,3731.5,1.29789222]
[1717058997708,11.93966682,3731.6,3731.5,1.29789222]
[1717058997910,2.52790645,3731.6,3731.5,1.29789222]
[1717058998122,1.94805682,3731.6,3731.5,1.84789222]
[1717058998325,0.57984963,3732.0,3731.5,1.84789222]
[1717058998640,2.67947,3732.1,3731.6,1.84789222]
[1717058998836,2.67947,3732.1,3731.7,0.27510748]
[1717058999137,2.67947,3732.1,3731.8,1.84789222]
[1717058999636,2.67947,3732.1,3731.9,0.03209202]
[1717058999843,2.67947,3732.1,3732.0,1.29789222]
[1717059000028,2.67947,3732.1,3732.0,1.32997714]
[1717059000426,3.0,3732.4,3732.0,1.87997714]
[1717059000612,2.3341,3732.2,3730.9,2.3914]
[1717059000936,2.3341,3732.2,3730.5,2.68058]
[1717059000937,2.67977,3731.7,3731.0,1.33004814]
[1717059001144,2.67994,3731.5,3731.0,1.33004814]
[1717059001315,1.94815507,3731.4,3731.0,1.33004814]
[1717059001515,4.94815507,3731.4,3731.0,1.29789222]
[1717059001843,1.94817487,3731.3,3731.0,1.29789222]
[1717059002240,2.6801,3731.2,3731.0,1.29789222]
[1717059002948,1.94828152,3731.1,3731.0,1.29789222]
[1717059003128,2.68034,3730.9,3730.0,2.2678]
[1717059003331,2.68034,3730.9,3730.1,1.57350314]
[1717059003543,2.68034,3730.9,3730.1,1.60557026]
[1717059004054,2.68034,3730.9,3730.1,1.32995934]
[1717059004847,2.68034,3730.9,3730.2,0.55]
[1717059005155,2.68034,3730.9,3730.3,1.33008163]
[1717059005667,2.68034,3730.9,3730.3,1.29789222]
[1717059007547,2.68063,3730.5,3730.3,1.29789222]
[1717059009133,1.94859227,3730.4,3730.3,1.29789222]
[1717059010638,4.94859227,3730.4,3730.3,1.29789222]
[1717059010950,5.52857566,3730.4,3730.3,1.29789222]
[1717059011151,4.94859227,3730.4,3730.3,1.29789222]
[1717059011313,5.52858525,3730.4,3730.3,1.29789222]
[1717059011739,2.68095,3730.1,3729.1,2.91131946]
[1717059011975,2.68095,3730.1,3729.3,1.29789222]
[1717059012154,2.68095,3730.1,3729.4,0.55]
[1717059012327,2.68095,3730.1,3729.5,1.29789222]
[1717059012525,1.94876139,3730.0,3729.6,0.55]
[1717059012726,1.94876139,3730.0,3729.7,1.29789222]
[1717059013127,1.94876139,3730.0,3729.8,0.03269627]
[1717059013326,1.94876139,3730.0,3729.9,1.29789222]
[1717059018539,2.68095,3730.1,3729.9,1.29789222]
[1717059019554,1.94874393,3730.0,3729.9,1.29789222]
[1717059020373,2.76974393,3730.0,3729.9,1.29789222]
[1717059020538,2.76974393,3730.0,3729.1,2.4891]
[1717059020539,2.68111,3729.8,3729.1,2.4891]
[1717059020735,0.821,3729.3,3729.2,2.09680222]
[1717059020936,0.821,3729.3,3729.2,2.129811]
[1717059022835,0.821,3729.6,3729.2,2.129811]
[1717059024336,2.68111,3729.8,3729.2,2.129811]
[1717059024548,2.68111,3729.8,3729.3,0.4618911]
[1717059024746,4.65079,3730.3,3729.5,1.29789222]
[1717059024953,1.94877483,3730.2,3729.6,0.55]
[1717059025136,4.65079,3730.3,3729.7,1.29789222]
[1717059025366,4.65079,3730.3,3729.8,0.55]
[1717059025565,4.65079,3730.3,3729.9,1.29789222]
[1717059025765,4.65079,3730.3,3730.0,0.55]
[1717059025966,1.94869663,3730.2,3730.1,1.29789222]
[1717059026556,4.65079,3730.3,3730.1,1.29789222]
[1717059027381,1.97,3730.3,3730.1,1.29789222]
[1717059027584,1.97,3730.3,3730.2,0.55]
[1717059027760,1.97,3730.3,3730.2,1.84789222]
[1717059031259,2.68096,3730.0,3728.8,2.2748]
[1717059031590,2.68096,3730.0,3729.0,1.29789222]
[1717059031747,3.0,3730.4,3729.6,1.29789222]
[1717059031947,1.94885415,3730.3,3729.6,1.29789222]
[1717059032147,1.94885415,3730.2,3729.7,0.0672476]
[1717059032347,3.2606767,3730.4,3729.8,1.29789222]
[1717059032547,3.0,3730.3,3729.9,0.55]
[1717059032748,3.0,3730.3,3730.0,1.29789222]
[1717059032946,3.0,3730.3,3730.1,0.55]
[1717059033157,3.0,3730.3,3730.2,1.29789222]
[1717059033363,3.57998087,3730.3,3730.2,1.29789222]
[1717059033563,3.57998087,3730.3,3730.2,1.36517769]
[1717059033786,4.40304996,3730.3,3730.2,0.06728547]
[1717059034090,2.68098,3730.0,3728.9,4.95962]
[1717059034389,2.68098,3730.0,3729.0,1.36527409]
[1717059035469,0.58000028,3729.9,3729.1,0.55]
[1717059035665,0.58000028,3729.9,3729.2,1.36525802]
[1717059035980,2.68098,3730.0,3729.3,0.55]
[1717059036171,2.68098,3730.0,3729.4,1.29789222]
[1717059036352,0.58001351,3729.9,3729.4,1.36524195]
[1717059036892,2.68098,3730.0,3729.4,1.36524195]
[1717059037293,0.58001528,3729.9,3729.4,1.36524195]
[1717059038162,0.58001528,3729.9,3729.4,1.62551493]
[1717059039350,0.58001528,3729.9,3729.4,1.36524195]
[1717059040510,1.97,3729.8,3729.4,1.36524195]
[1717059040853,1.97,3729.8,3729.4,1.29789222]
[1717059042674,1.97,3729.8,3729.5,0.06732866]
[1717059042901,1.97,3729.8,3729.6,1.29789222]
[1717059043100,1.97,3729.8,3729.7,0.0673126]
[1717059043306,1.97,3729.8,3728.9,2.2779]
[1717059043307,2.68119,3729.7,3728.9,2.2779]
[1717059043453,2.68119,3729.7,3729.0,1.84789222]
[1717059043454,0.58004353,3729.6,3729.0,1.84789222]
[1717059043659,0.58004353,3729.6,3729.1,0.0673608]
[1717059043860,2.68119,3729.7,3729.2,1.29789222]
[1717059044103,2.68119,3729.7,3729.3,0.06734473]
[1717059044387,2.68119,3729.7,3729.4,1.29789222]
[1717059044568,0.821,3729.5,3729.4,1.29789222]
[1717059046505,2.68119,3729.7,3729.4,1.29789222]
[1717059046807,0.821,3729.5,3729.4,1.29789222]
[1717059048813,0.821,3729.5,3728.9,0.22779]
[1717059049016,2.68122,3729.7,3728.5,2.2918]
[1717059049017,2.68122,3729.7,3729.0,1.29789222]
[1717059049218,0.821,3729.1,3729.0,1.29789222]
[1717059050480,0.58008542,3729.6,3729.0,1.29789222]
[1717059050720,0.58008542,3729.6,3729.1,0.55]
[1717059050975,2.68122,3729.7,3729.1,0.55]
[1717059051276,0.821,3729.2,3729.1,0.55]
[1717059051473,2.68122,3729.7,3729.1,1.91559775]
[1717059051706,0.821,3729.3,3729.2,1.29789222]
[1717059052017,0.821,3729.3,3729.2,1.91558972]
[1717059052215,0.821,3729.3,3729.2,2.10714869]
[1717059052887,2.68122,3729.7,3729.2,2.10714869]
[1717059053087,0.821,3729.3,3729.2,2.03945119]
[1717059053289,0.821,3729.3,3729.2,2.10714869]
[1717059054221,2.68122,3729.7,3729.2,2.10714869]
[1717059054422,7.38,3730.0,3729.2,1.91558972]
[1717059054611,0.821,3729.8,3729.3,0.55]
[1717059054790,1.40106197,3729.8,3729.4,1.29789222]
[1717059054991,0.821,3729.6,3729.5,0.55]
[1717059055318,0.821,3729.6,3729.5,2.16212379]
[1717059056080,0.821,3729.6,3729.5,1.36556562]
[1717059058512,3.0,3729.9,3729.5,1.36556562]
[1717059058711,3.0,3729.9,3729.6,1.84789222]
[1717059058915,0.821,3729.7,3729.6,1.84789222]
[1717059059115,0.821,3729.7,3729.6,1.91555758]
[1717059059526,3.0,3729.9,3729.6,2.10711334]
[1717059059721,0.821,3729.7,3729.6,2.10711334]
[1717059060221,7.38,3730.0,3729.6,2.10711334]
[1717059060589,0.821,3729.8,3729.6,1.55711334]
[1717059060796,0.821,3729.8,3729.6,1.36555758]
[1717059061299,0.821,3729.8,3729.6,0.06766536]
[1717059061500,1.40101101,3729.8,3728.6,5.14742]
[1717059061810,0.58001101,3729.8,3728.7,1.3655811]
[1717059062009,0.821,3729.1,3728.8,0.65130011]
[1717059062205,0.821,3729.1,3728.9,1.29789222]
[1717059062645,0.821,3729.1,3729.0,0.61766477]
[1717059062944,0.821,3729.1,3729.0,1.91555699]
[1717059064035,0.821,3729.1,3729.0,1.36555699]
[1717059064710,0.821,3729.1,3729.0,1.5672427]
[1717059065528,0.821,3729.1,3729.0,1.36555699]
[1717059071743,0.58009186,3729.4,3729.0,1.36555699]
[1717059071901,0.821,3729.1,3729.0,0.06766477]
[1717059072228,0.821,3729.1,3728.6,2.4655]
[1717059072396,0.821,3729.1,3729.0,0.06779162]
[1717059072596,0.821,3729.1,3728.7,0.55]
[1717059072836,0.821,3729.1,3729.0,0.06779162]
[1717059073037,0.821,3729.1,3728.8,0.30155]
[1717059073196,2.68136,3729.5,3729.0,0.06779162]
[1717059073404,2.68136,3729.5,3729.1,1.29789222]
[1717059073618,0.821,3729.2,3729.1,1.29789222]
[1717059074016,0.821,3729.2,3729.1,1.3656758]
[1717059078760,2.68136,3729.5,3729.1,1.3656758]
[1717059079058,0.821,3729.2,3729.1,1.3656758]
[1717059079260,2.68136,3729.5,3729.1,1.29789222]
[1717059079459,2.68136,3729.5,3729.1,1.36571483]
[1717059079759,2.68136,3729.5,3729.1,1.29789222]
[1717059079760,0.821,3729.2,3729.1,1.29789222]
[1717059080122,0.821,3729.2,3729.1,1.36571483]
[1717059081062,0.58009266,3729.4,3729.1,1.36571483]
[1717059081259,0.821,3729.2,3729.1,1.36571483]
[1717059081463,0.821,3729.2,3729.1,1.29789222]
[1717059081626,0.821,3729.2,3729.1,1.36571483]
[1717059083386,2.68136,3729.5,3729.1,1.36571483]
[1717059083562,0.821,3729.2,3729.1,1.36571483]
[1717059083863,0.821,3729.2,3729.1,1.29789222]
[1717059084088,2.68136,3729.5,3729.1,1.36571483]
[1717059084369,0.821,3729.2,3729.1,1.36571483]
[1717059084569,0.821,3729.2,3729.1,1.91571483]
[1717059085080,3.0,3729.9,3729.1,2.10728631]
[1717059085264,0.821,3729.3,3729.1,2.10728631]
[1717059086556,0.821,3729.3,3729.1,4.55698631]
[1717059086761,0.821,3729.3,3729.2,0.55]
[1717059086972,0.821,3729.3,3729.2,1.84789222]
[1717059087199,0.821,3729.3,3729.2,2.55617512]
[1717059088807,0.58005974,3729.8,3729.2,2.55617512]
[1717059088957,0.821,3729.4,3729.3,1.29789222]
[1717059089151,0.821,3729.4,3729.3,1.91567923]
[1717059089403,0.821,3729.4,3729.3,2.47126594]
[1717059089572,10.06101,3730.0,3729.3,2.47126594]
[1717059089573,0.821,3729.6,3729.3,2.47126594]
[1717059089774,0.821,3729.6,3729.4,0.55]
[1717059090087,0.821,3729.6,3729.5,1.29789222]
[1717059090258,0.821,3729.6,3729.5,1.91566316]
[1717059090463,0.821,3729.6,3729.5,2.21778815]
[1717059090851,0.58005974,3729.9,3729.5,2.21778815]
[1717059091055,0.821,3729.8,3729.6,0.55]
[1717059091257,0.821,3729.8,3729.7,3.78539222]
[1717059091554,0.821,3729.8,3729.7,4.4031471]
[1717059091755,0.821,3729.8,3729.7,4.87367431]
[1717059092772,2.76971045,3729.8,3729.7,4.87367431]
[1717059094263,1.94871045,3729.8,3729.7,4.87367431]
[1717059094677,1.94871045,3729.9,3729.7,4.87367431]
[1717059094995,0.821,3729.9,3729.8,0.55]
[1717059095194,1.94860124,3729.9,3729.8,2.36547215]
[1717059095396,2.76960124,3729.9,3729.8,2.43280598]
[1717059096896,1.94860124,3729.9,3729.8,2.43280598]
[1717059097099,1.94860124,3730.3,3729.8,2.43280598]
[1717059097293,2.76960124,3730.2,3729.9,1.78992282]
[1717059097598,1.94860124,3730.1,3730.0,0.61731777]
[1717059097795,1.94860124,3730.1,3730.0,1.91520999]
[1717059098094,0.821,3730.2,3730.0,1.91520999]
[1717059098303,0.821,3730.2,3730.1,1.29789222]
[1717059098597,0.821,3730.2,3730.1,2.15592602]
[1717059098798,2.7694498,3730.2,3730.1,2.15592602]
[1717059099599,8.201,3730.9,3730.1,7.17526602]
[1717059099808,1.94837063,3730.8,3730.3,1.29789222]
[1717059099962,1.94837063,3730.8,3730.4,1.3225266]
[1717059099963,2.76937063,3730.8,3730.4,1.3225266]
[1717059100299,0.821,3730.6,3730.5,1.36511131]
[1717059100474,0.821,3730.6,3730.5,1.91511131]
[1717059106269,0.821,3730.8,3730.5,1.91511131]
[1717059106516,0.821,3730.8,3730.6,0.81876379]
[1717059106815,0.821,3730.8,3730.7,1.29789222]
[1717059107111,7.38,3731.5,3730.7,4.25859222]
[1717059107313,0.821,3731.2,3730.8,1.29789222]
[1717059107613,0.821,3731.2,3730.8,1.91258708]
[1717059107772,0.821,3731.2,3730.9,0.45920509]
[1717059107979,0.821,3731.0,3730.9,0.45920509]
[1717059108201,0.821,3731.0,3730.9,1.00920509]
[1717059111944,7.38,3731.8,3731.0,5.17953]
[1717059112246,7.38,3731.8,3731.1,2.67865495]
[1717059112247,8.201,3731.8,3731.1,2.67865495]
[1717059112435,0.821,3731.8,3731.2,2.4293]
[1717059112751,0.821,3731.8,3731.3,1.84789222]
[1717059112951,0.821,3731.8,3731.4,0.56579549]
[1717059113154,0.821,3731.8,3731.5,1.84789222]
[1717059114013,7.38,3732.4,3731.5,1.84789222]
[1717059114214,0.821,3731.9,3731.5,1.84789222]
[1717059115558,0.821,3731.7,3731.5,1.84789222]
[1717059115762,2.67919,3732.5,3731.6,0.24136877]
[1717059115942,0.821,3731.8,3731.7,1.84789222]
[1717059117872,10.05919,3732.5,3731.7,1.84789222]
[1717059118171,7.38,3732.5,3731.8,2.3928]
[1717059118394,7.38,3732.5,3731.9,2.29609832]
[1717059118395,0.821,3732.1,3731.9,2.29609832]
[1717059118685,7.38,3732.5,3731.9,2.29609832]
[1717059118849,0.821,3732.1,3731.9,2.29609832]
[1717059119179,0.821,3732.1,3732.0,0.06421831]
[1717059119385,7.38,3732.5,3732.0,2.38742219]
[1717059119386,0.821,3732.3,3732.0,2.38742219]
[1717059119583,0.821,3732.3,3732.1,1.84789222]
[1717059119768,0.821,3732.3,3732.2,0.06420226]
[1717059119933,0.821,3732.3,3732.2,1.84789222]
[1717059120275,2.67883,3733.0,3732.2,1.91185077]
[1717059120438,0.821,3732.8,3732.3,4.41920846]
[1717059120836,7.5580052,3733.3,3732.4,0.06394251]
[1717059121063,7.5580052,3733.3,3732.5,4.18049222]
[1717059121229,0.821,3733.2,3732.5,4.18049222]
[1717059121430,0.821,3733.2,3732.6,0.06381602]
[1717059121664,0.821,3732.8,3732.7,2.27232304]
[1717059122059,0.821,3732.8,3732.7,1.36170022]
[1717059122540,0.821,3732.8,3732.7,1.29789222]
[1717059125165,0.821,3732.8,3731.8,2.4825]
[1717059125383,2.3691,3732.6,3732.1,1.91174834]
[1717059125549,0.821,3732.2,3732.1,1.91174834]
[1717059127155,3.0,3732.7,3732.1,1.91174834]
[1717059127354,0.821,3732.2,3732.1,1.91174834]
[1717059130692,3.0,3732.7,3732.1,1.91174834]
[1717059131068,0.821,3732.2,3732.1,1.91174834]
[1717059133305,2.4244,3732.2,3732.1,0.06385612]
[1717059133594,2.4244,3732.2,3730.6,5.17278]
[1717059133595,2.67966,3731.9,3730.6,5.17278]
[1717059133806,0.821,3731.0,3730.8,1.29789222]
[1717059134150,0.821,3731.0,3730.9,0.05334944]
[1717059134356,0.821,3731.2,3730.9,1.35124166]
[1717059134597,0.821,3731.2,3731.0,1.29789222]
[1717059134891,0.821,3731.2,3731.1,0.05333339]
[1717059135099,0.821,3731.2,3731.1,1.35122561]
[1717059135763,1.419573,3731.2,3731.1,0.05333339]
[1717059136011,1.419573,3731.2,3729.9,2.3623]
[1717059136012,2.68028,3731.0,3729.9,2.3623]
[1717059136303,1.969,3730.9,3730.0,1.29789222]
[1717059136483,2.68044,3730.8,3730.0,1.34983046]
[1717059136999,5.02584,3730.8,3730.0,1.34983046]
[1717059137779,5.725324,3730.8,3730.0,1.34983046]
[1717059138103,4.64976,3730.3,3730.0,0.05193824]
[1717059138408,4.64976,3730.3,3730.1,1.29789222]
[1717059139945,2.68076,3730.3,3730.1,1.29789222]
[1717059140317,3.145736,3730.3,3730.1,1.29789222]
[1717059142225,2.68095,3730.1,3728.8,2.68179]
[1717059142555,1.969,3729.8,3729.1,1.29789222]
[1717059143057,1.969,3729.8,3729.2,0.05237248]
[1717059143261,1.969,3729.8,3729.3,1.29789222]
[1717059143623,1.969,3729.8,3729.4,0.05235641]
[1717059143819,1.969,3729.8,3729.5,1.29789222]
[1717059144067,2.68095,3730.1,3729.6,1.29789222]
[1717059144389,2.68053,3730.6,3730.0,1.29789222]
[1717059144659,3.0,3730.5,3730.0,1.29789222]
[1717059145030,2.68053,3730.6,3730.0,1.29789222]
[1717059147122,9.349,3731.0,3730.4,3.72239222]
[1717059147461,15.04016,3731.2,3730.4,3.72239222]
[1717059147462,2.68016,3731.2,3730.5,0.97448132]
[1717059147764,2.68016,3731.2,3730.6,1.29789222]
[1717059148123,2.68016,3731.2,3730.7,0.0524337]
[1717059148319,2.68016,3731.2,3730.8,1.29789222]
[1717059148555,1.969,3730.9,3730.8,1.29789222]
[1717059149770,2.68039,3730.8,3729.5,2.60312486]
[1717059149964,1.969,3730.5,3729.7,1.29789222]
[1717059150126,2.68071,3730.4,3729.7,1.29789222]
[1717059150494,3.445681,3730.4,3729.8,0.05243132]
[1717059150765,3.445681,3730.4,3729.9,1.29789222]
[1717059150919,3.445681,3730.4,3730.0,0.05241526]
[1717059151131,3.445681,3730.4,3730.1,1.29789222]
[1717059153160,2.68082,3730.2,3730.1,1.29789222]
[1717059154846,3.34326636,3730.2,3730.1,1.29789222]
[1717059155264,6.34326636,3730.2,3729.1,2.2675]
[1717059155465,2.68112,3729.8,3729.2,1.29789222]
[1717059155642,2.68112,3729.8,3729.2,1.34950396]
[1717059156148,2.68112,3729.8,3729.2,1.29789222]
[1717059156353,2.68112,3729.8,3729.3,1.29789222]
[1717059156952,7.64976,3730.3,3729.5,1.29789222]
[1717059158779,2.68122,3729.7,3729.5,1.29789222]
[1717059159295,7.64975,3730.3,3729.6,0.05184512]
[1717059159501,5.68075,3730.3,3729.7,1.29789222]
[1717059160161,5.68075,3730.3,3729.8,0.0518323]
[1717059160348,2.68041,3730.8,3730.2,1.29789222]
[1717059160548,3.0,3730.7,3730.3,0.60179215]
[1717059160764,3.0,3730.7,3730.4,1.29789222]
[1717059161190,3.0,3730.7,3730.5,0.05177609]
[1717059161371,3.0,3730.7,3730.6,1.29789222]
[1717059161546,3.0,3730.7,3730.6,1.34966028]
[1717059165097,4.969,3730.7,3730.6,1.34966028]
[1717059165291,5.54890528,3730.7,3730.6,1.34966028]
[1717059169095,6.37183681,3730.7,3730.6,0.05176806]
[1717059169404,6.37183681,3730.7,3729.5,2.4903]
[1717059169405,2.68069,3730.4,3729.5,2.4903]
[1717059169612,2.54890528,3730.3,3729.6,1.34958475]
[1717059170463,2.6811,3729.8,3729.6,1.29789222]
[1717059170891,2.6811,3729.8,3729.7,0.05170073]
[1717059171074,2.6811,3729.8,3729.7,1.29789222]
[1717059171408,2.6811,3729.8,3729.7,1.34959295]
[1717059171716,1.969,3731.7,3730.1,2.2667]
[1717059171909,2.4117,3732.5,3730.8,1.29789222]
[1717059171910,1.94824311,3731.6,3730.8,1.29789222]
[1717059172222,1.969,3731.8,3730.8,1.29789222]
[1717059172223,0.57998801,3731.7,3730.9,0.05164983]
[1717059172396,1.969,3731.8,3731.0,1.29789222]
[1717059172599,1.969,3731.8,3731.1,0.05162728]
[1717059172600,1.9480389,3731.7,3731.1,0.05162728]
[1717059172802,0.57977831,3731.7,3731.2,1.29789222]
[1717059173107,0.57977831,3731.7,3731.3,0.05161123]
[1717059173264,2.1659,3731.8,3731.4,1.29789222]
[1717059173464,1.94801625,3731.7,3731.4,1.29789222]
[1717059173668,2.99715925,3731.7,3731.4,1.29789222]
[1717059173896,1.049143,3731.7,3731.4,1.29789222]
[1717059174091,4.049143,3731.7,3731.4,1.29789222]
[1717059174296,2.52779405,3731.6,3731.4,1.29789222]
[1717059174507,0.57977398,3731.6,3731.4,1.29789222]
[1717059174714,1.20127828,3731.6,3730.5,2.68053]
[1717059174916,3.56277828,3731.6,3730.6,1.29789222]
[1717059175107,1.969,3731.3,3730.6,1.34923827]
[1717059177114,1.94815728,3731.2,3730.6,1.34923827]
[1717059177699,1.94815728,3731.2,3730.6,1.29789222]
[1717059179517,2.33987301,3731.2,3730.6,1.29789222]
[1717059179689,1.94815728,3731.1,3730.6,1.29789222]
[1717059179886,1.94815728,3731.1,3730.7,0.05112703]
[1717059180095,1.94815728,3731.1,3730.8,1.29789222]
[1717059180617,1.94815728,3731.0,3730.8,1.29789222]
[1717059180774,1.94815728,3730.9,3730.8,1.29789222]
[1717059180972,1.94815728,3731.2,3730.8,1.29789222]
[1717059181214,1.94815728,3731.1,3730.8,1.29789222]
[1717059181416,1.94815728,3731.0,3730.8,1.29789222]
[1717059181588,1.94815728,3730.9,3730.8,1.29789222]
[1717059182111,1.94815728,3731.2,3730.8,1.29789222]
[1717059182315,1.94815728,3731.1,3730.8,1.29789222]
[1717059182475,1.94815728,3731.1,3730.1,2.2667]
[1717059182671,1.94815728,3731.1,3730.2,1.29789222]
[1717059182877,1.94815728,3731.1,3730.2,1.34905939]
[1717059185523,1.94815728,3731.1,3730.3,3.97863222]
[1717059185725,1.94815728,3731.0,3730.4,0.62964994]
[1717059185924,1.969,3731.3,3730.5,1.29789222]
[1717059186286,1.94810656,3731.2,3730.6,0.05117724]
[1717059186626,1.94810656,3731.2,3730.7,1.29789222]
[1717059186830,1.94810656,3731.1,3730.8,0.05110926]
[1717059187025,1.94810656,3731.0,3730.9,1.29789222]
[1717059187323,1.94810656,3731.0,3730.9,1.34899345]
[1717059187993,1.94810656,3731.0,3730.9,1.4838928]
[1717059188198,9.349,3732.1,3730.9,2.0338928]
[1717059188395,2.52756628,3732.0,3731.0,1.84789222]
[1717059188608,1.94783893,3731.9,3731.1,0.05104948]
[1717059188935,1.94783893,3731.9,3731.2,1.29789222]
[1717059189134,1.94783893,3731.8,3731.2,1.29789222]
[1717059189295,1.94783893,3731.7,3731.3,0.05103343]
[1717059189489,1.94783893,3731.6,3731.4,1.29789222]
[1717059189737,1.969,3732.1,3731.4,1.29789222]
[1717059189896,1.9478148,3732.0,3731.5,0.05101738]
[1717059190097,5.52752495,3732.0,3731.6,1.29789222]
[1717059190435,1.9478148,3731.9,3731.6,1.29789222]
[1717059192619,5.20718283,3731.9,3730.8,2.4604]
[1717059192834,4.3586,3731.7,3730.9,1.34713067]
[1717059193138,2.67996,3731.4,3730.9,1.34713067]
[1717059193334,1.9478148,3731.3,3730.9,1.34713067]
[1717059193697,2.67996,3731.4,3730.9,1.29789222]
[1717059194137,4.3586,3731.7,3730.9,1.29789222]
[1717059194138,2.67963,3731.9,3731.0,2.3592]
[1717059194437,4.94784258,3731.8,3731.1,1.34703674]
[1717059194615,1.94784258,3731.7,3731.1,1.29789222]
[1717059194935,1.94784258,3731.7,3731.2,0.04923709]
[1717059195142,1.94784258,3731.7,3731.3,1.29789222]
[1717059196950,3.44858984,3731.7,3731.3,1.29789222]
[1717059197250,1.94784258,3731.6,3731.3,1.29789222]
[1717059197658,2.52762591,3731.6,3731.3,1.29789222]
[1717059197950,1.94784258,3731.5,3731.3,1.29789222]
[1717059198311,1.94784258,3731.4,3731.3,1.29789222]
[1717059198512,1.50074726,3731.7,3731.3,1.29789222]
[1717059198513,1.94784258,3731.5,3731.3,1.29789222]
[1717059198748,1.94784258,3731.4,3731.3,1.29789222]
[1717059199252,1.94784258,3731.4,3730.6,2.3054]
[1717059199253,2.35067985,3731.4,3730.6,2.3054]
[1717059199458,2.35067985,3731.4,3730.7,1.34544064]
[1717059199459,1.94784258,3731.3,3730.7,1.34544064]
[1717059201552,1.94784258,3731.2,3730.7,1.34544064]
[1717059201852,0.57979875,3731.4,3730.7,1.34544064]
[1717059202061,1.9481042,3731.3,3730.7,1.34544064]
[1717059204895,2.68013,3731.2,3730.7,1.34544064]
[1717059205068,2.52790295,3731.1,3730.7,1.34544064]
[1717059205356,1.9481042,3731.0,3730.7,1.34544064]
[1717059208847,2.68031,3730.9,3730.7,0.04754842]
[1717059209034,2.68048,3730.7,3729.9,2.2807]
[1717059209373,1.9481042,3730.6,3730.0,1.34247708]
[1717059212274,1.9481042,3730.6,3730.3,2.2551]
[1717059212433,2.68013,3731.2,3730.4,0.55]